fUST/lending_fUST_20250705
["ID","MTS","AMOUNT","RATE_DAILY","PERIOD"]
[369769449,1751722253007,-460.0,0.00020273,2]
[369769450,1751722253018,-460.0,0.00020273,2]
[369769451,1751722253028,-513.85,0.00020273,2]
[369769452,1751722253039,-460.0,0.00020273,2]
[369769453,1751722253050,-460.0,0.00020273,2]
[369769454,1751722253061,-160.0,0.00020286,2]
[369769455,1751722253072,-12580.16877015,0.00020286,2]
[369769456,1751722253083,-848.02350475,0.00020286,2]
[369769457,1751722253094,-214.00689675,0.00020286,2]
[369769458,1751722253104,-160.0,0.00020286,2]
[369769459,1751722253115,-230.42616721,0.00020286,2]
[369769460,1751722253126,-837.5764301,0.00020286,2]
[369769461,1751722253137,-160.0,0.00020286,2]
[369769462,1751722253149,-215.14521394,0.00020286,2]
[369769463,1751722253160,-160.0,0.00020286,2]
[369769464,1751722253171,-160.0,0.00020286,2]
[369769465,1751722253182,-160.0,0.00020286,2]
[369769466,1751722253192,-160.0,0.00020286,2]
[369769467,1751722253203,-160.0,0.00020286,2]
[369769468,1751722253213,-160.0,0.00020286,2]
[369769469,1751722253225,-232.17415268,0.00020314,3]
[369769470,1751722253236,-256.421,0.00020359,2]
[369769471,1751722253246,-151.0,0.00020466,2]
[369769472,1751722253257,-151.0,0.00020466,2]
[369769473,1751722253268,-151.0,0.00020466,2]
[369769474,1751722253278,-151.0,0.00020466,2]
[369769475,1751722253289,-500.0,0.00020466,2]
[369769476,1751722253300,-151.0,0.00020466,2]
[369769477,1751722253311,-151.0,0.00020466,2]
[369769478,1751722253322,-266.52760523,0.00020466,2]
[369769479,1751722253334,-151.0,0.00020493,2]
[369769480,1751722253345,-151.0,0.00020493,2]
[369769481,1751722253357,-151.0,0.00020493,2]
[369769482,1751722253368,-500.0,0.00020493,2]
[369769483,1751722253379,-151.0,0.00020493,2]
[369769484,1751722253391,-1000.0,0.00020521,2]
[369769485,1751722253402,-1000.0,0.00020521,2]
[369769486,1751722253415,-1000.0,0.00020521,2]
[369769487,1751722253426,-500.95899928,0.00020521,2]
[369769488,1751722253438,-1000.0,0.00020521,2]
[369769489,1751722253448,-1000.0,0.00020521,2]
[369769490,1751722253460,-1000.0,0.00020521,2]
[369769491,1751722253471,-502.37484182,0.00020521,2]
[369769492,1751722253481,-1000.0,0.00020521,2]
[369769493,1751722253493,-1200.0,0.00020521,2]
[369769494,1751722253505,-1001.37323614,0.00020521,2]
[369769495,1751722253516,-1000.0,0.00020521,2]
[369769496,1751722253532,-1000.0,0.00020521,2]
[369769497,1751722253543,-232.17415268,0.00020521,3]
[369769498,1751722253555,-151.0,0.00020521,2]
[369769499,1751722253566,-198.0,0.00020521,2]
[369769500,1751722253575,-151.0,0.00020521,2]
[369769501,1751722253585,-172.10464361,0.00020521,2]
[369769502,1751722253595,-198.0,0.00020521,2]
[369769503,1751722253605,-336.9,0.00020538,3]
[369769504,1751722253615,-460.0,0.00020547,2]
[369769505,1751722253625,-460.0,0.00020547,2]
[369769506,1751722253635,-460.0,0.00020547,2]
[369769507,1751722253645,-581.71919431,0.00020547,2]
[369769508,1751722253655,-460.0,0.00020547,2]
[369769509,1751722253664,-475.96,0.00020547,2]
[369769510,1751722253674,-460.0,0.00020547,2]
[369769511,1751722253683,-460.0,0.00020547,2]
[369769512,1751722253693,-460.0,0.00020547,2]
[369769513,1751722253703,-460.0,0.00020547,2]
[369769514,1751722253712,-520.9,0.00020547,2]
[369769515,1751722253721,-460.0,0.00020547,2]
[369769516,1751722253730,-460.0,0.00020547,2]
[369769517,1751722253740,-460.0,0.00020547,2]
[369769518,1751722253750,-460.0,0.00020547,2]
[369769519,1751722253759,-460.0,0.00020547,2]
[369769520,1751722253769,-460.0,0.00020547,2]
[369769521,1751722253779,-210.44184295,0.00020547,2]
[369769522,1751722253788,-460.0,0.00020547,2]
[369769523,1751722253798,-737.14,0.00020547,2]
[369769524,1751722253808,-460.0,0.00020547,2]
[369769525,1751722253818,-460.0,0.00020547,2]
[369769526,1751722253828,-460.0,0.00020547,2]
[369769527,1751722253838,-506.75,0.00020547,2]
[369769528,1751722253848,-460.0,0.00020547,2]
[369769529,1751722253857,-460.0,0.00020547,2]
[369769530,1751722253867,-460.0,0.00020547,2]
[369769531,1751722253877,-460.0,0.00020547,2]
[369769532,1751722253887,-460.0,0.00020547,2]
[369769533,1751722253898,-460.0,0.00020547,2]
[369769534,1751722253908,-460.0,0.00020547,2]
[369769535,1751722253917,-460.0,0.00020547,2]
[369769536,1751722253927,-460.0,0.00020547,2]
[369769537,1751722253936,-460.0,0.00020547,2]
[369769538,1751722253946,-489.23,0.00020547,2]
[369769539,1751722253955,-460.0,0.00020547,2]
[369769540,1751722253965,-460.0,0.00020547,2]
[369769541,1751722253974,-1288.64,0.00020547,2]
[369769542,1751722253984,-460.0,0.00020547,2]
[369769543,1751722253995,-460.0,0.00020547,2]
[369769544,1751722254004,-460.0,0.00020547,2]
[369769545,1751722254013,-460.0,0.00020547,2]
[369769546,1751722254023,-460.0,0.00020547,2]
[369769547,1751722254032,-460.0,0.00020547,2]
[369769548,1751722254041,-460.0,0.00020547,2]
[369769549,1751722254051,-460.0,0.00020547,2]
[369769550,1751722254060,-460.0,0.00020547,2]
[369769551,1751722254070,-460.0,0.00020547,2]
[369769552,1751722254391,-460.0,0.00020547,2]
[369769553,1751722254412,-572.67,0.00020547,2]
[369769554,1751722254426,-460.0,0.00020547,2]
[369769555,1751722254438,-460.0,0.00020547,2]
[369769556,1751722254449,-460.0,0.00020547,2]
[369769557,1751722254458,-620.48,0.00020547,2]
[369769558,1751722254468,-519.51,0.00020547,2]
[369769559,1751722254477,-460.0,0.00020547,2]
[369769560,1751722254486,-460.0,0.00020547,2]
[369769561,1751722254495,-460.0,0.00020547,2]
[369769562,1751722254504,-1011.25,0.00020547,2]
[369769563,1751722254513,-460.0,0.00020547,2]
[369769564,1751722254522,-460.0,0.00020547,2]
[369769565,1751722254532,-460.0,0.00020547,2]
[369769566,1751722254541,-460.0,0.00020547,2]
[369769567,1751722254550,-460.0,0.00020547,2]
[369769568,1751722254560,-460.0,0.00020547,2]
[369769569,1751722254569,-358.62420387,0.00020547,2]
[369769570,1751722254578,-460.0,0.00020547,2]
[369769571,1751722254587,-460.0,0.00020547,2]
[369769572,1751722254596,-460.0,0.00020547,2]
[369769573,1751722254605,-460.0,0.00020547,2]
[369769574,1751722254615,-917.61,0.00020547,2]
[369769575,1751722254625,-607.25,0.00020547,2]
[369769576,1751722254635,-614.63,0.00020547,2]
[369769577,1751722254645,-460.0,0.00020547,2]
[369769578,1751722254654,-460.0,0.00020547,2]
[369769579,1751722254663,-541.09,0.00020547,2]
[369769580,1751722254672,-460.0,0.00020547,2]
[369769581,1751722254682,-4405.57,0.00020547,2]
[369769582,1751722254691,-460.0,0.00020547,2]
[369769583,1751722254700,-460.0,0.00020547,2]
[369769584,1751722254710,-712.65,0.00020547,2]
[369769585,1751722254719,-460.0,0.00020547,2]
[369769586,1751722254729,-460.0,0.00020547,2]
[369769587,1751722254738,-499.85,0.00020547,2]
[369769588,1751722254748,-460.0,0.00020547,2]
[369769589,1751722254758,-527.23,0.00020547,2]
[369769590,1751722254768,-739.98,0.00020547,2]
[369769591,1751722254778,-485.28,0.00020547,2]
[369769592,1751722254788,-485.28,0.00020547,2]
[369769593,1751722254798,-2002.42,0.00020547,2]
[369769594,1751722254807,-569.89,0.00020547,2]
[369769595,1751722254816,-1763.37,0.00020547,2]
[369769596,1751722254826,-460.0,0.00020547,2]
[369769597,1751722254835,-3593.24,0.00020547,2]
[369769598,1751722254846,-460.0,0.00020547,2]
[369769599,1751722254855,-460.0,0.00020547,2]
[369769600,1751722254864,-628.33,0.00020547,2]
[369769601,1751722254873,-817.0,0.00020547,2]
[369769602,1751722254883,-976.22,0.00020547,2]
[369769603,1751722254892,-151.0,0.00020547,2]
[369769604,1751722254902,-460.0,0.00020547,2]
[369769605,1751722254912,-151.0,0.00020547,2]
[369769606,1751722254921,-460.0,0.00020547,2]
[369769607,1751722254930,-460.0,0.00020547,2]
[369769608,1751722254940,-293.59115,0.00020547,2]
[369769609,1751722254949,-460.0,0.00020547,2]
[369769610,1751722254958,-1540.91,0.00020547,2]
[369769611,1751722254967,-6246.0,0.00020547,2]
[369769612,1751722254977,-2162.68,0.00020547,2]
[369769613,1751722254986,-532.9,0.00020547,2]
[369769614,1751722254996,-460.0,0.00020547,2]
[369769615,1751722255006,-460.0,0.00020547,2]
[369769616,1751722255017,-460.0,0.00020547,2]
[369769617,1751722255027,-512.79,0.00020547,2]
[369769618,1751722255036,-460.0,0.00020547,2]
[369769619,1751722255046,-460.0,0.00020547,2]
[369769620,1751722255055,-8650.73,0.00020547,2]
[369769621,1751722255064,-923.59,0.00020547,2]
[369769622,1751722255074,-460.0,0.00020547,2]
[369769623,1751722255084,-644.54,0.00020547,2]
[369769624,1751722255094,-330.98234547,0.00020547,2]
[369769625,1751722255105,-1436.31,0.00020547,2]
[369769626,1751722255115,-515.17,0.00020547,2]
[369769627,1751722255124,-460.0,0.00020547,2]
[369769628,1751722255135,-788.88,0.00020547,2]
[369769629,1751722255144,-460.0,0.00020547,2]
[369769630,1751722255155,-2109.23,0.00020547,2]
[369769631,1751722255164,-1988.63,0.00020547,2]
[369769632,1751722255173,-460.0,0.00020547,2]
[369769633,1751722255183,-460.0,0.00020547,2]
[369769634,1751722255192,-1388.11,0.00020547,2]
[369769635,1751722255203,-460.0,0.00020547,2]
[369769636,1751722255213,-460.0,0.00020547,2]
[369769637,1751722255223,-460.0,0.00020547,2]
[369769638,1751722255233,-460.0,0.00020547,2]
[369769639,1751722255243,-463.27,0.00020547,2]
[369769640,1751722255254,-8374.38,0.00020547,2]
[369769641,1751722255263,-460.0,0.00020547,2]
[369769642,1751722255272,-2962.19,0.00020547,2]
[369769643,1751722255282,-460.0,0.00020547,2]
[369769644,1751722255291,-1198.59,0.00020547,2]
[369769645,1751722255301,-460.0,0.00020547,2]
[369769646,1751722255310,-460.0,0.00020547,2]
[369769647,1751722255320,-776.97,0.00020547,2]
[369769648,1751722255329,-579.55,0.00020547,2]
[369769649,1751722255339,-460.0,0.00020547,2]
[369769650,1751722255348,-460.0,0.00020547,2]
[369769651,1751722255358,-460.0,0.00020547,2]
[369769652,1751722255368,-460.0,0.00020547,2]
[369769653,1751722255377,-460.0,0.00020547,2]
[369769654,1751722255386,-555.84,0.00020547,2]
[369769655,1751722255397,-460.0,0.00020547,2]
[369769656,1751722255407,-2095.61,0.00020547,2]
[369769657,1751722255417,-460.0,0.00020547,2]
[369769658,1751722255428,-460.0,0.00020547,2]
[369769659,1751722255438,-460.0,0.00020547,2]
[369769660,1751722255450,-893.21,0.00020547,2]
[369769661,1751722255460,-1898.56,0.00020547,2]
[369769662,1751722255470,-460.0,0.00020547,2]
[369769663,1751722255481,-4007.99,0.00020547,2]
[369769664,1751722255491,-460.0,0.00020547,2]
[369769665,1751722255500,-5012.7,0.00020547,2]
[369769666,1751722255509,-460.0,0.00020547,2]
[369769667,1751722255519,-460.0,0.00020547,2]
[369769668,1751722255534,-460.0,0.00020547,2]
[369769669,1751722255544,-460.0,0.00020547,2]
[369769670,1751722255554,-460.0,0.00020547,2]
[369769671,1751722255564,-615.94,0.00020547,2]
[369769672,1751722255574,-951.9,0.00020547,2]
[369769673,1751722255584,-460.0,0.00020547,2]
[369769674,1751722255593,-460.0,0.00020547,2]
[369769675,1751722255604,-460.0,0.00020547,2]
[369769676,1751722255614,-460.0,0.00020547,2]
[369769677,1751722255625,-288.7404468,0.00020547,2]
[369769678,1751722255636,-537.54,0.00020547,2]
[369769679,1751722255646,-6536.21,0.00020547,2]
[369769680,1751722255656,-460.0,0.00020547,2]
[369769681,1751722255666,-460.0,0.00020547,2]
[369769682,1751722255676,-1096.58,0.00020547,2]
[369769683,1751722255685,-460.0,0.00020547,2]
[369769684,1751722255695,-1375.12,0.00020547,2]
[369769685,1751722255704,-460.0,0.00020547,2]
[369769686,1751722255714,-482.57,0.00020547,2]
[369769687,1751722255724,-941.2,0.00020547,2]
[369769688,1751722255733,-541.54,0.00020547,2]
[369769689,1751722255743,-1263.3,0.00020547,2]
[369769690,1751722255753,-1157.82,0.00020547,2]
[369769691,1751722255762,-460.0,0.00020547,2]
[369769692,1751722255772,-460.0,0.00020547,2]
[369769693,1751722255782,-460.0,0.00020547,2]
[369769694,1751722255793,-3019.38,0.00020547,2]
[369769695,1751722255803,-1058.72,0.00020547,2]
[369769696,1751722255812,-460.0,0.00020547,2]
[369769697,1751722255821,-512.71,0.00020547,2]
[369769698,1751722255831,-460.0,0.00020547,2]
[369769699,1751722255841,-2032.43,0.00020547,2]
[369769700,1751722255850,-585.28,0.00020547,2]
[369769701,1751722255859,-2923.56,0.00020547,2]
[369769702,1751722255869,-460.0,0.00020547,2]
[369769703,1751722255878,-460.0,0.00020547,2]
[369769704,1751722255887,-652.84,0.00020547,2]
[369769705,1751722255896,-1505.83,0.00020547,2]
[369769706,1751722255905,-540.09,0.00020547,2]
[369769707,1751722255914,-641.04,0.00020547,2]
[369769708,1751722255924,-1403.04,0.00020547,2]
[369769709,1751722255933,-460.0,0.00020547,2]
[369769710,1751722255943,-1468.55,0.00020547,2]
[369769711,1751722255952,-460.0,0.00020547,2]
[369769712,1751722255961,-460.0,0.00020547,2]
[369769713,1751722255970,-3916.41,0.00020547,2]
[369769714,1751722255980,-648.75,0.00020547,2]
[369769715,1751722255990,-828.08,0.00020547,2]
[369769716,1751722255999,-670.49,0.00020547,2]
[369769717,1751722256008,-510.5,0.00020547,2]
[369769718,1751722256018,-460.0,0.00020547,2]
[369769719,1751722256028,-1415.35,0.00020547,2]
[369769720,1751722256038,-1243.88,0.00020547,2]
[369769721,1751722256047,-460.0,0.00020547,2]
[369769722,1751722256057,-618.51,0.00020547,2]
[369769723,1751722256066,-460.0,0.00020547,2]
[369769724,1751722256075,-3935.55,0.00020547,2]
[369769725,1751722256085,-667.64,0.00020547,2]
[369769726,1751722256095,-186.066806,0.00020547,2]
[369769727,1751722256104,-460.0,0.00020547,2]
[369769728,1751722256114,-186.066806,0.00020547,2]
[369769729,1751722256124,-460.0,0.00020547,2]
[369769730,1751722256134,-1062.87,0.00020547,2]
[369769731,1751722256143,-507.36,0.00020547,2]
[369769732,1751722256153,-460.0,0.00020547,2]
[369769733,1751722256163,-3292.21,0.00020547,2]
[369769734,1751722256173,-460.0,0.00020547,2]
[369769735,1751722256182,-460.0,0.00020547,2]
[369769736,1751722256191,-513.85,0.00020547,2]
[369769737,1751722256200,-460.0,0.00020547,2]
[369769738,1751722256210,-460.0,0.00020547,2]
[369769739,1751722256219,-151.0,0.00020548,2]
[369769740,1751722256228,-151.0,0.00020548,2]
[369769741,1751722256238,-229.0,0.00020576,2]
[369769742,1751722256248,-247.52401893,0.00020576,2]
[369769743,1751722256258,-4044.13,0.000206,2]
[369769744,1751722256267,-151.0,0.000206,2]
[369769745,1751722256276,-151.0,0.000206,2]
[369769746,1751722256286,-2152.0,0.00020698,2]
[369769747,1751722256295,-646.0,0.00020698,2]
[369769748,1751722256305,-406.0,0.00020698,2]
[369769749,1751722256314,-405.98146155,0.0002071,2]
[369769750,1751722256323,-232.17415268,0.00020728,3]
[369769751,1751722256333,-151.0,0.00020811,4]
[369769752,1751722256343,-2000.0,0.00020816,2]
[369769753,1751722256352,-460.0,0.00020821,2]
[369769754,1751722256361,-460.0,0.00020821,2]
[369769755,1751722256371,-460.0,0.00020821,2]
[369769756,1751722256381,-460.0,0.00020821,2]
[369769757,1751722256390,-475.96,0.00020821,2]
[369769758,1751722256400,-460.0,0.00020821,2]
[369769759,1751722256410,-460.0,0.00020821,2]
[369769760,1751722256420,-460.0,0.00020821,2]
[369769761,1751722256430,-520.9,0.00020821,2]
[369769762,1751722256440,-460.0,0.00020821,2]
[369769763,1751722256449,-490.44404902,0.00020821,2]
[369769764,1751722256458,-460.0,0.00020821,2]
[369769765,1751722256468,-460.0,0.00020821,2]
[369769766,1751722256477,-460.0,0.00020821,2]
[369769767,1751722256487,-460.0,0.00020821,2]
[369769768,1751722256496,-737.14,0.00020821,2]
[369769769,1751722256506,-460.0,0.00020821,2]
[369769770,1751722256515,-460.0,0.00020821,2]
[369769771,1751722256525,-460.0,0.00020821,2]
[369769772,1751722256535,-506.75,0.00020821,2]
[369769773,1751722256544,-460.0,0.00020821,2]
[369769774,1751722256554,-460.0,0.00020821,2]
[369769775,1751722256563,-460.0,0.00020821,2]
[369769776,1751722256573,-460.0,0.00020821,2]
[369769777,1751722256583,-460.0,0.00020821,2]
[369769778,1751722256592,-460.0,0.00020821,2]
[369769779,1751722256602,-460.0,0.00020821,2]
[369769780,1751722256612,-460.0,0.00020821,2]
[369769781,1751722256621,-460.0,0.00020821,2]
[369769782,1751722256630,-460.0,0.00020821,2]
[369769783,1751722256640,-489.23,0.00020821,2]
[369769784,1751722256650,-460.0,0.00020821,2]
[369769785,1751722256659,-460.0,0.00020821,2]
[369769786,1751722256669,-1288.64,0.00020821,2]
[369769787,1751722256679,-460.0,0.00020821,2]
[369769788,1751722256688,-460.0,0.00020821,2]
[369769789,1751722256698,-460.0,0.00020821,2]
[369769790,1751722256708,-365.40663386,0.00020821,2]
[369769791,1751722256717,-460.0,0.00020821,2]
[369769792,1751722256727,-460.0,0.00020821,2]
[369769793,1751722256737,-460.0,0.00020821,2]
[369769794,1751722256747,-460.0,0.00020821,2]
[369769795,1751722256757,-426.49187046,0.00020821,2]
[369769796,1751722256767,-151.0,0.00020821,2]
[369769797,1751722256778,-460.0,0.00020821,2]
[369769798,1751722256788,-460.0,0.00020821,2]
[369769800,1751722256798,-572.67,0.00020821,2]
[369769801,1751722256808,-487.67239242,0.00020821,2]
[369769802,1751722256817,-460.0,0.00020821,2]
[369769803,1751722256827,-460.0,0.00020821,2]
[369769804,1751722256836,-620.48,0.00020821,2]
[369769805,1751722256846,-519.51,0.00020821,2]
[369769806,1751722256856,-460.0,0.00020821,2]
[369769807,1751722256866,-460.0,0.00020821,2]
[369769808,1751722256876,-460.0,0.00020821,2]
[369769809,1751722256886,-1011.25,0.00020821,2]
[369769810,1751722256895,-460.0,0.00020821,2]
[369769811,1751722256905,-460.0,0.00020821,2]
[369769812,1751722256914,-460.0,0.00020821,2]
[369769813,1751722256924,-460.0,0.00020821,2]
[369769814,1751722256934,-460.0,0.00020821,2]
[369769815,1751722256944,-460.0,0.00020821,2]
[369769816,1751722256953,-151.0,0.00020821,2]
[369769817,1751722256962,-460.0,0.00020821,2]
[369769818,1751722256972,-460.0,0.00020821,2]
[369769819,1751722256981,-460.0,0.00020821,2]
[369769820,1751722256991,-460.0,0.00020821,2]
[369769821,1751722257000,-917.61,0.00020821,2]
[369769822,1751722257010,-607.25,0.00020821,2]
[369769823,1751722257019,-614.63,0.00020821,2]
[369769824,1751722257029,-460.0,0.00020821,2]
[369769825,1751722257039,-447.77707372,0.00020821,2]
[369769826,1751722257049,-541.09,0.00020821,2]
[369769827,1751722257059,-460.0,0.00020821,2]
[369769828,1751722257068,-4405.57,0.00020821,2]
[369769829,1751722257078,-460.0,0.00020821,2]
[369769830,1751722257087,-460.0,0.00020821,2]
[369769831,1751722257097,-151.0,0.00020821,2]
[369769832,1751722257106,-712.65,0.00020821,2]
[369769833,1751722257116,-151.0,0.00020821,2]
[369769834,1751722257125,-460.0,0.00020821,2]
[369769835,1751722257135,-460.0,0.00020821,2]
[369769836,1751722257144,-460.0,0.00020821,2]
[369769837,1751722257153,-527.23,0.00020821,2]
[369769838,1751722257163,-151.0,0.00020821,2]
[369769839,1751722257171,-151.0,0.00020821,2]
[369769840,1751722257181,-739.98,0.00020821,2]
[369769841,1751722257190,-485.28,0.00020821,2]
[369769842,1751722257199,-485.28,0.00020821,2]
[369769843,1751722257209,-151.0,0.00020821,2]
[369769844,1751722257218,-2002.42,0.00020821,2]
[369769845,1751722257228,-569.89,0.00020821,2]
[369769846,1751722257238,-1763.37,0.00020821,2]
[369769847,1751722257247,-460.0,0.00020821,2]
[369769848,1751722257257,-3593.24,0.00020821,2]
[369769849,1751722257266,-460.0,0.00020821,2]
[369769850,1751722257276,-460.0,0.00020821,2]
[369769851,1751722257286,-628.33,0.00020821,2]
[369769852,1751722257296,-817.0,0.00020821,2]
[369769853,1751722257305,-976.22,0.00020821,2]
[369769855,1751722257315,-460.0,0.00020821,2]
[369769856,1751722257324,-460.0,0.00020821,2]
[369769857,1751722257334,-460.0,0.00020821,2]
[369769858,1751722257343,-460.0,0.00020821,2]
[369769859,1751722257352,-1540.91,0.00020821,2]
[369769860,1751722257362,-6246.0,0.00020821,2]
[369769861,1751722257372,-2162.68,0.00020821,2]
[369769862,1751722257381,-532.9,0.00020821,2]
[369769863,1751722257392,-460.0,0.00020821,2]
[369769864,1751722257402,-460.0,0.00020821,2]
[369769865,1751722257412,-460.0,0.00020821,2]
[369769866,1751722257421,-512.79,0.00020821,2]
[369769867,1751722257431,-460.0,0.00020821,2]
[369769868,1751722257441,-460.0,0.00020821,2]
[369769869,1751722257452,-8650.73,0.00020821,2]
[369769870,1751722257461,-923.59,0.00020821,2]
[369769871,1751722257471,-460.0,0.00020821,2]
[369769872,1751722257480,-644.54,0.00020821,2]
[369769873,1751722257491,-1436.31,0.00020821,2]
[369769874,1751722257501,-515.17,0.00020821,2]
[369769875,1751722257510,-460.0,0.00020821,2]
[369769876,1751722257521,-788.88,0.00020821,2]
[369769877,1751722257534,-460.0,0.00020821,2]
[369769878,1751722257543,-2109.23,0.00020821,2]
[369769879,1751722257698,-1988.63,0.00020821,2]
[369769880,1751722257714,-460.0,0.00020821,2]
[369769881,1751722257724,-460.0,0.00020821,2]
[369769882,1751722257734,-1388.11,0.00020821,2]
[369769883,1751722257744,-460.0,0.00020821,2]
[369769884,1751722257754,-460.0,0.00020821,2]
[369769885,1751722257763,-460.0,0.00020821,2]
[369769886,1751722257773,-460.0,0.00020821,2]
[369769887,1751722257782,-463.27,0.00020821,2]
[369769888,1751722257792,-8374.38,0.00020821,2]
[369769889,1751722257802,-460.0,0.00020821,2]
[369769890,1751722257811,-2962.19,0.00020821,2]
[369769891,1751722257821,-460.0,0.00020821,2]
[369769892,1751722257830,-1198.59,0.00020821,2]
[369769893,1751722257840,-460.0,0.00020821,2]
[369769894,1751722257850,-460.0,0.00020821,2]
[369769895,1751722257860,-776.97,0.00020821,2]
[369769896,1751722257870,-579.55,0.00020821,2]
[369769897,1751722257880,-460.0,0.00020821,2]
[369769898,1751722257890,-460.0,0.00020821,2]
[369769899,1751722257899,-460.0,0.00020821,2]
[369769900,1751722257909,-460.0,0.00020821,2]
[369769901,1751722257919,-460.0,0.00020821,2]
[369769902,1751722257929,-555.84,0.00020821,2]
[369769903,1751722257938,-460.0,0.00020821,2]
[369769904,1751722257948,-2095.61,0.00020821,2]
[369769905,1751722257958,-460.0,0.00020821,2]
[369769906,1751722257968,-460.0,0.00020821,2]
[369769907,1751722257978,-460.0,0.00020821,2]
[369769908,1751722257987,-893.21,0.00020821,2]
[369769909,1751722257997,-1898.56,0.00020821,2]
[369769910,1751722258007,-460.0,0.00020821,2]
[369769911,1751722258017,-4007.99,0.00020821,2]
[369769912,1751722258026,-460.0,0.00020821,2]
[369769913,1751722258035,-5012.7,0.00020821,2]
[369769914,1751722258045,-460.0,0.00020821,2]
[369769915,1751722258054,-460.0,0.00020821,2]
[369769916,1751722258064,-460.0,0.00020821,2]
[369769917,1751722258073,-460.0,0.00020821,2]
[369769918,1751722258083,-460.0,0.00020821,2]
[369769919,1751722258094,-615.94,0.00020821,2]
[369769920,1751722258104,-951.9,0.00020821,2]
[369769921,1751722258113,-151.0,0.00020821,2]
[369769922,1751722258123,-460.0,0.00020821,2]
[369769923,1751722258134,-460.0,0.00020821,2]
[369769924,1751722258143,-460.0,0.00020821,2]
[369769925,1751722258153,-460.0,0.00020821,2]
[369769926,1751722258162,-537.54,0.00020821,2]
[369769927,1751722258172,-6536.21,0.00020821,2]
[369769928,1751722258182,-460.0,0.00020821,2]
[369769929,1751722258191,-460.0,0.00020821,2]
[369769930,1751722258202,-1096.58,0.00020821,2]
[369769931,1751722258212,-460.0,0.00020821,2]
[369769932,1751722258221,-1375.12,0.00020821,2]
[369769933,1751722258231,-460.0,0.00020821,2]
[369769934,1751722258240,-482.57,0.00020821,2]
[369769935,1751722258250,-941.2,0.00020821,2]
[369769936,1751722258259,-541.54,0.00020821,2]
[369769937,1751722258269,-1263.3,0.00020821,2]
[369769938,1751722258279,-1157.82,0.00020821,2]
[369769939,1751722258289,-460.0,0.00020821,2]
[369769940,1751722258299,-460.0,0.00020821,2]
[369769941,1751722258308,-460.0,0.00020821,2]
[369769942,1751722258318,-3019.38,0.00020821,2]
[369769943,1751722258327,-1058.72,0.00020821,2]
[369769944,1751722258336,-460.0,0.00020821,2]
[369769945,1751722258347,-512.71,0.00020821,2]
[369769946,1751722258356,-460.0,0.00020821,2]
[369769947,1751722258366,-2032.43,0.00020821,2]
[369769948,1751722258375,-585.28,0.00020821,2]
[369769949,1751722258384,-2923.56,0.00020821,2]
[369769950,1751722258394,-460.0,0.00020821,2]